[Event "10th Uppsala Young Champions 2023"]
[Site "Uppsala"]
[Date "2023.10.27"]
[Round "1.1"]
[White "Gavrilescu, David"]
[Black "Briem, Stephan"]
[Result "1/2-1/2"]
[ECO "C02"]
[WhiteElo "2534"]
[BlackElo "2144"]
[Annotator "ChessBase"]
[PlyCount "172"]
[EventDate "2023.10.27"]
[EventType "swiss"]
[EventCountry "SWE"]
[SourceTitle "playchess.com"]
[Source "ChessBase"]
[SourceQuality "1"]
[TimeControl "5400+30"]

1. e4 {[%emt 0:00:15]} e6 {[%emt 0:00:50]} 2. d4 {[%emt 0:00:18]} d5 {[%emt 0:00:13]} 3. e5 {[%emt 0:00:17]} c5 {[%emt 0:00:07]} 4. c3 {[%emt 0:00:06]} Qb6 {[%emt 0:00:33]} 5. Nf3 {[%emt 0:00:09]} Bd7 {[%emt 0:00:34]} 6. Be2 {[%emt 0:00:24]} cxd4 {[%emt 0:00:59]} 7. cxd4 {[%emt 0:00:15]} Bb5 {[%emt 0:00:43]} 8. Nc3 {[%emt 0:00:27]} Bxe2 {[%emt 0:00:10]} 9. Nxe2 {[%emt 0:00:10]} Bb4+ {[%emt 0:00:57]} 10. Kf1 {[%emt 0:00:13]} Nc6 {[%emt 0:01:26]} 11. h4 {[%emt 0:04:30]} h5 {[%emt 0:19:48]} 12. Rh3 {[%emt 0:07:45]} Be7 {[%emt 0:13:16]} 13. Ng5 {[%emt 0:05:16]} Nh6 {[%emt 0:03:06]} 14. Rb3 {[%emt 0:05:27]} Qa6 {[%emt 0:02:20]} 15. g3 {[%emt 0:02:23]} Nf5 {[%emt 0:01:37]} 16. Kg2 {[%emt 0:00:13]} g6 {[%emt 0:09:58]} 17. Rd3 {[%emt 0:13:38]} Kf8 {[%emt 0:07:04]} 18. a3 {[%emt 0:01:36]} Kg7 {[%emt 0:01:46]} 19. b4 {[%emt 0:15:39]} b5 {[%emt 0:18:29]} 20. Bd2 {[%emt 0:08:18]} Qb7 {[%emt 0:04:03]} 21. Rb1 {[%emt 0:02:28]} a6 {[%emt 0:07:54]} 22. Nf3 {[%emt 0:04:01]} Na7 {[%emt 0:01:34]} 23. Nc1 {[%emt 0:00:21]} Nc8 {[%emt 0:00:59]} 24. Nb3 {[%emt 0:00:10]} Nb6 {[%emt 0:00:17]} 25. Nc5 {[%emt 0:00:07]} Qc6 {[%emt 0:01:08]} 26. Bg5 {[%emt 0:03:46]} Bxg5 {[%emt 0:01:09]} 27. Nxg5 {[%emt 0:00:14]} Nc4 {[%emt 0:00:28]} 28. Qf3 {[%emt 0:09:44]} a5 {[%emt 0:01:43]} 29. a4 {[%emt 0:03:43]} Rhb8 {[%emt 0:00:58]} 30. bxa5 {[%emt 0:01:17]} bxa4 {[%emt 0:00:47]} 31. Rc1 {[%emt 0:01:22]} Qe8 {[%emt 0:00:30]} 32. a6 {[%emt 0:00:20]} Ra7 {[%emt 0:00:24]} 33. Ra1 {[%emt 0:03:33]} Rb4 {[%emt 0:00:33]} 34. Qf4 {[%emt 0:01:52]} Qe7 {[%emt 0:00:33]} 35. Rf3 {[%emt 0:04:42]} a3 {[%emt 0:00:27]} 36. Qc1 {[%emt 0:01:31]} Rb6 {[%emt 0:00:32]} 37. Raxa3 {[%emt 0:00:41]} Nxa3 {[%emt 0:00:06]} 38. Qxa3 {[%emt 0:00:03]} Qe8 {[%emt 0:00:49]} 39. Qa1 {[%emt 0:01:40]} Qc6 {[%emt 0:00:14]} 40. Rc3 {[%emt 0:00:44]} Qb5 41. Qd1 {[%emt 0:00:50]} Rbxa6 {[%emt 0:01:24]} 42. Nxa6 {[%emt 0:00:21]} Qxa6 {[%emt 0:00:03]} 43. Nf3 {[%emt 0:00:21]} Qb6 {[%emt 0:00:33]} 44. Qc1 {[%emt 0:00:26]} Qd8 {[%emt 0:00:44]} 45. Rc8 {[%emt 0:00:08]} Qe7 {[%emt 0:00:09]} 46. Qc6 {[%emt 0:00:23]} Rd7 {[%emt 0:01:01]} 47. Qa8 {[%emt 0:00:09]} Nh6 {[%emt 0:00:19]} 48. Ng5 {[%emt 0:00:41]} Ra7 {[%emt 0:00:15]} 49. Qc6 {[%emt 0:00:25]} Qd7 {[%emt 0:00:27]} 50. Qc5 {[%emt 0:00:52]} Qe7 {[%emt 0:00:06]} 51. Qb6 {[%emt 0:01:11]} Rb7 {[%emt 0:00:17]} 52. Qa6 {[%emt 0:00:25]} Ra7 {[%emt 0:00:10]} 53. Qd6 {[%emt 0:00:24]} Rb7 {[%emt 0:01:48]} 54. Qa6 {[%emt 0:00:39]} Ra7 {[%emt 0:00:12]} 55. Qb5 {[%emt 0:00:25]} Rb7 {[%emt 0:00:19]} 56. Qa4 {[%emt 0:00:32]} Qd7 {[%emt 0:01:03]} 57. Qc2 {[%emt 0:00:38]} Ng4 {[%emt 0:00:18]} 58. Rc3 {[%emt 0:00:27]} Qb5 {[%emt 0:00:37]} 59. Rc7 {[%emt 0:00:29]} Ne3+ {[%emt 0:00:31]} 60. fxe3 {[%emt 0:00:07]} Rxc7 {[%emt 0:00:11]} 61. Nxe6+ {[%emt 0:00:22]} fxe6 {[%emt 0:00:11]} 62. Qxc7+ {[%emt 0:00:05]} Kh6 {[%emt 0:00:32]} 63. Qf7 {[%emt 0:00:26]} Qe2+ {[%emt 0:00:54]} 64. Qf2 {[%emt 0:00:02]} Qd1 {[%emt 0:00:26]} 65. Qf8+ Kh7 {[%emt 0:00:04]} 66. Qf7+ {[%emt 0:00:19]} Kh6 {[%emt 0:00:13]} 67. Qf3 {[%emt 0:00:41]} Qd2+ {[%emt 0:00:29]} 68. Kh3 {[%emt 0:00:04]} Qe1 {[%emt 0:00:16]} 69. g4 {[%emt 0:01:06]} hxg4+ {[%emt 0:00:23]} 70. Kxg4 {[%emt 0:00:02]} Qg1+ {[%emt 0:01:02]} 71. Kh3 {[%emt 0:00:10]} Kg7 {[%emt 0:01:25]} 72. Qf6+ {[%emt 0:01:45]} Kh7 {[%emt 0:00:06]} 73. Qxe6 {[%emt 0:00:48]} Qxe3+ {[%emt 0:00:24]} 74. Kg4 {[%emt 0:00:02]} Qg1+ {[%emt 0:00:45]} 75. Kf4 {[%emt 0:00:20]} Qc1+ {[%emt 0:00:23]} 76. Kf3 {[%emt 0:00:05]} Qf1+ {[%emt 0:00:38]} 77. Ke3 {[%emt 0:00:06]} Qc1+ {[%emt 0:00:28]} 78. Ke2 {[%emt 0:00:34]} Qc2+ {[%emt 0:00:09]} 79. Kf3 {[%emt 0:00:12]} Qe4+ {[%emt 0:00:13]} 80. Kg3 {[%emt 0:00:06]} Qe3+ {[%emt 0:00:12]} 81. Kg4 {[%emt 0:00:20]} Qg1+ {[%emt 0:00:10]} 82. Kf3 {[%emt 0:00:14]} Qd1+ {[%emt 0:00:30]} 83. Ke3 {[%emt 0:00:12]} Qc1+ {[%emt 0:00:31]} 84. Kf2 {[%emt 0:00:29]} Qd2+ {[%emt 0:00:21]} 85. Kg3 {[%emt 0:00:12]} Qe3+ {[%emt 0:00:16]} 86. Kg4 {[%emt 0:00:06]} Qg1+ {[%emt 0:00:39]} 1/2-1/2

[Event "10th Uppsala Young Champions 2023"]
[Site "Uppsala"]
[Date "2023.10.27"]
[Round "1.2"]
[White "Grahn, Vidar"]
[Black "Stefansson, Vignir Vatnar"]
[Result "1/2-1/2"]
[ECO "A62"]
[WhiteElo "2133"]
[BlackElo "2484"]
[Annotator "ChessBase"]
[PlyCount "64"]
[EventDate "2023.10.27"]
[EventType "swiss"]
[EventCountry "SWE"]
[SourceTitle "playchess.com"]
[Source "ChessBase"]
[SourceQuality "1"]
[TimeControl "5400+30"]

1. d4 {[%emt 0:00:03]} Nf6 {[%emt 0:01:11]} 2. c4 {[%emt 0:00:04]} e6 {[%emt 0:00:20]} 3. g3 {[%emt 0:00:04]} c5 4. d5 {[%emt 0:01:03]} exd5 {[%emt 0:01:05]} 5. cxd5 {[%emt 0:00:07]} d6 {[%emt 0:00:16]} 6. Nc3 {[%emt 0:00:07]} g6 {[%emt 0:00:07]} 7. Bg2 {[%emt 0:00:04]} Bg7 {[%emt 0:00:07]} 8. Nf3 {[%emt 0:00:04]} O-O {[%emt 0:00:12]} 9. O-O {[%emt 0:00:04]} Re8 {[%emt 0:00:07]} 10. Bf4 {[%emt 0:00:07]} a6 {[%emt 0:01:23]} 11. a4 {[%emt 0:00:28]} h6 {[%emt 0:00:08]} 12. Qc1 {[%emt 0:00:28]} Kh7 {[%emt 0:02:23]} 13. a5 {[%emt 0:03:47]} Bf5 {[%emt 0:02:15]} 14. Nd2 {[%emt 0:18:29]} g5 {[%emt 0:05:21]} 15. Be3 {[%emt 0:05:36]} Nbd7 {[%emt 0:02:08]} 16. Nc4 {[%emt 0:03:36]} Qc7 {[%emt 0:09:10]} 17. Bd2 {[%emt 0:07:12]} b5 {[%emt 0:00:23]} 18. axb6 {[%emt 0:01:52]} Nxb6 {[%emt 0:00:07]} 19. Nxb6 {[%emt 0:02:20]} Qxb6 {[%emt 0:00:06]} 20. Re1 {[%emt 0:16:57]} Rab8 {[%emt 0:01:18]} 21. e4 {[%emt 0:01:29]} Bg6 {[%emt 0:00:31]} 22. e5 {[%emt 0:02:31]} Rxe5 {[%emt 0:04:36]} 23. Rxe5 {[%emt 0:00:23]} dxe5 {[%emt 0:00:08]} 24. Na4 {[%emt 0:00:18]} Qb5 {[%emt 0:00:11]} 25. Nxc5 {[%emt 0:04:40]} Qxb2 {[%emt 0:00:41]} 26. Nxa6 {[%emt 0:00:51]} Qxc1+ {[%emt 0:00:29]} 27. Rxc1 {[%emt 0:00:37]} Rd8 {[%emt 0:00:05]} 28. Ba5 {[%emt 0:06:06]} Ra8 {[%emt 0:01:06]} 29. Rc6 {[%emt 0:00:13]} Bd3 {[%emt 0:04:04]} 30. Nc5 {[%emt 0:03:11]} Bb5 {[%emt 0:13:37]} 31. Nb7 {[%emt 0:00:31]} Bxc6 {[%emt 0:25:07]} 32. dxc6 {[%emt 0:00:07]} Bf8 {[%emt 0:00:07]} 1/2-1/2

[Event "10th Uppsala Young Champions 2023"]
[Site "Uppsala"]
[Date "2023.10.27"]
[Round "1.3"]
[White "Sorensen, Hampus"]
[Black "Oksendal, Martin"]
[Result "1/2-1/2"]
[ECO "E04"]
[WhiteElo "2470"]
[BlackElo "2123"]
[Annotator "ChessBase"]
[PlyCount "140"]
[EventDate "2023.10.27"]
[EventType "swiss"]
[EventCountry "SWE"]
[SourceTitle "playchess.com"]
[Source "ChessBase"]
[SourceQuality "1"]
[TimeControl "5400+30"]

1. d4 {[%emt 0:00:14]} Nf6 {[%emt 0:00:19]} 2. c4 {[%emt 0:00:09]} e6 {[%emt 0:00:07]} 3. Nf3 {[%emt 0:00:08]} d5 {[%emt 0:00:08]} 4. g3 {[%emt 0:00:09]} dxc4 {[%emt 0:00:19]} 5. Bg2 {[%emt 0:00:54]} Bb4+ {[%emt 0:00:42]} 6. Bd2 {[%emt 0:02:22]} a5 {[%emt 0:00:23]} 7. a3 {[%emt 0:14:33]} Bxd2+ {[%emt 0:00:38]} 8. Qxd2 {[%emt 0:00:22]} c6 {[%emt 0:00:35]} 9. Ne5 {[%emt 0:08:57]} b5 {[%emt 0:00:34]} 10. Nc3 {[%emt 0:16:27]} Nd5 {[%emt 0:01:57]} 11. Ne4 {[%emt 0:00:44]} f6 {[%emt 0:05:27]} 12. Nf3 {[%emt 0:00:28]} Qe7 {[%emt 0:03:05]} 13. Qc2 {[%emt 0:05:59]} a4 {[%emt 0:09:11]} 14. h4 {[%emt 0:04:14]} Nd7 {[%emt 0:04:22]} 15. h5 {[%emt 0:00:16]} Bb7 {[%emt 0:03:28]} 16. Rd1 {[%emt 0:02:35]} O-O-O {[%emt 0:08:10]} 17. O-O {[%emt 0:01:11]} g5 {[%emt 0:06:33]} 18. Nc3 {[%emt 0:05:13]} Qf7 {[%emt 0:09:20]} 19. h6 {[%emt 0:06:09]} Qg6 {[%emt 0:03:09]} 20. e4 {[%emt 0:00:22]} Nc7 {[%emt 0:03:24]} 21. Qc1 {[%emt 0:02:52]} Qxh6 {[%emt 0:03:36]} 22. d5 {[%emt 0:00:34]} e5 {[%emt 0:02:30]} 23. dxc6 {[%emt 0:02:01]} Bxc6 {[%emt 0:00:05]} 24. Rd6 {[%emt 0:03:50]} Nb8 {[%emt 0:02:37]} 25. Rfd1 {[%emt 0:00:29]} Rxd6 {[%emt 0:02:05]} 26. Rxd6 {[%emt 0:00:03]} Rd8 {[%emt 0:00:48]} 27. Rxd8+ {[%emt 0:01:59]} Kxd8 {[%emt 0:00:02]} 28. Qd2+ {[%emt 0:00:26]} Ke8 {[%emt 0:07:04]} 29. Qd6 {[%emt 0:08:00]} Qg7 {[%emt 0:04:39]} 30. Nd5 {[%emt 0:00:06]} Bxd5 {[%emt 0:00:14]} 31. exd5 {[%emt 0:00:02]} Qe7 {[%emt 0:09:03]} 32. Qb6 {[%emt 0:00:15]} Qd8 {[%emt 0:00:48]} 33. d6 {[%emt 0:00:20]} Ne6 {[%emt 0:03:38]} 34. Qxb5+ {[%emt 0:00:10]} Kf7 {[%emt 0:00:29]} 35. Bh3 {[%emt 0:02:42]} Qxd6 {[%emt 0:01:44]} 36. Qxc4 {[%emt 0:00:08]} h5 {[%emt 0:01:42]} 37. Bxe6+ {[%emt 0:01:00]} Qxe6 {[%emt 0:00:01]} 38. Qxa4 {[%emt 0:00:09]} Qd5 {[%emt 0:00:59]} 39. Qa7+ {[%emt 0:01:56]} Nd7 {[%emt 0:00:42]} 40. Qe3 {[%emt 0:00:17]} Nc5 {[%emt 0:01:39]} 41. Nd2 {[%emt 0:03:07]} Ne6 {[%emt 0:00:31]} 42. b4 {[%emt 0:01:56]} Nd4 {[%emt 0:00:50]} 43. Qe4 {[%emt 0:00:59]} Qa2 {[%emt 0:01:29]} 44. Qh7+ {[%emt 0:00:33]} Kf8 {[%emt 0:00:14]} 45. Ne4 {[%emt 0:01:06]} Qxa3 {[%emt 0:01:18]} 46. Qh8+ {[%emt 0:01:27]} Ke7 {[%emt 0:00:07]} 47. Qxf6+ {[%emt 0:00:06]} Kd7 {[%emt 0:00:06]} 48. Qd6+ {[%emt 0:01:56]} Kc8 {[%emt 0:00:07]} 49. Qc5+ {[%emt 0:00:08]} Kd7 {[%emt 0:00:34]} 50. Qd5+ {[%emt 0:01:53]} Kc8 {[%emt 0:00:14]} 51. Qc5+ {[%emt 0:00:35]} Kd7 {[%emt 0:00:34]} 52. Nxg5 {[%emt 0:00:39]} Qa1+ {[%emt 0:00:52]} 53. Kh2 {[%emt 0:00:52]} Qa2 {[%emt 0:00:34]} 54. Ne4 {[%emt 0:01:58]} Qe2 {[%emt 0:01:08]} 55. Qd5+ {[%emt 0:00:09]} Kc8 {[%emt 0:00:09]} 56. Qg8+ {[%emt 0:01:00]} Kc7 {[%emt 0:01:10]} 57. Qf7+ {[%emt 0:00:03]} Kb8 {[%emt 0:00:11]} 58. Qe8+ {[%emt 0:01:03]} Ka7 {[%emt 0:00:10]} 59. Qd7+ {[%emt 0:00:39]} Ka8 {[%emt 0:01:03]} 60. Qd8+ {[%emt 0:00:07]} Ka7 {[%emt 0:00:08]} 61. Qa5+ {[%emt 0:00:17]} Kb7 {[%emt 0:00:14]} 62. Nc5+ {[%emt 0:01:11]} Kc6 {[%emt 0:00:31]} 63. Qa8+ {[%emt 0:00:33]} Kb5 {[%emt 0:00:26]} 64. Qb7+ {[%emt 0:00:26]} Kc4 {[%emt 0:00:19]} 65. Kg2 {[%emt 0:00:39]} h4 {[%emt 0:01:38]} 66. Qa6+ {[%emt 0:00:42]} Kxb4 {[%emt 0:00:27]} 67. Qxe2 {[%emt 0:00:29]} Nxe2 {[%emt 0:00:04]} 68. Nd3+ {[%emt 0:00:22]} Kc3 {[%emt 0:00:09]} 69. Nxe5 {[%emt 0:00:33]} hxg3 {[%emt 0:00:04]} 70. fxg3 {[%emt 0:00:05]} Nxg3 {[%emt 0:00:04]} 1/2-1/2

[Event "10th Uppsala Young Champions 2023"]
[Site "Uppsala"]
[Date "2023.10.27"]
[Round "1.4"]
[White "Mai, Alexander Oliver"]
[Black "Domalchuk-Jonasson, Aleksandr"]
[Result "0-1"]
[ECO "C47"]
[WhiteElo "2118"]
[BlackElo "2392"]
[Annotator "ChessBase"]
[PlyCount "114"]
[EventDate "2023.10.27"]
[EventType "swiss"]
[EventCountry "SWE"]
[SourceTitle "playchess.com"]
[Source "ChessBase"]
[SourceQuality "1"]
[TimeControl "5400+30"]

1. e4 {[%emt 0:00:04]} e5 {[%emt 0:00:25]} 2. Nf3 {[%emt 0:00:05]} Nc6 {[%emt 0:00:19]} 3. Nc3 {[%emt 0:00:05]} Nf6 {[%emt 0:00:20]} 4. d4 {[%emt 0:00:05]} exd4 {[%emt 0:00:41]} 5. Nxd4 {[%emt 0:00:06]} Bc5 6. Be3 {[%emt 0:01:46]} Bb6 {[%emt 0:00:27]} 7. f3 {[%emt 0:16:35]} O-O {[%emt 0:00:38]} 8. Qd2 {[%emt 0:09:55]} d5 {[%emt 0:13:13]} 9. O-O-O {[%emt 0:07:16]} dxe4 {[%emt 0:06:03]} 10. Nxc6 {[%emt 0:00:42]} Qxd2+ {[%emt 0:00:05]} 11. Kxd2 {[%emt 0:06:10]} bxc6 {[%emt 0:01:21]} 12. Nxe4 {[%emt 0:02:12]} Rd8+ {[%emt 0:15:12]} 13. Bd3 {[%emt 0:00:21]} Nd5 {[%emt 0:00:05]} 14. Bf2 {[%emt 0:16:45]} Nf4 {[%emt 0:06:51]} 15. g3 {[%emt 0:02:13]} Nxd3 {[%emt 0:02:27]} 16. cxd3 {[%emt 0:00:15]} Be6 {[%emt 0:01:32]} 17. a3 {[%emt 0:06:57]} f5 {[%emt 0:02:19]} 18. Bxb6 {[%emt 0:05:14]} fxe4 {[%emt 0:08:24]} 19. Be3 {[%emt 0:04:39]} Rxd3+ {[%emt 0:04:19]} 20. Ke2 {[%emt 0:00:30]} Rb3 {[%emt 0:00:14]} 21. Rd2 {[%emt 0:03:56]} exf3+ {[%emt 0:07:23]} 22. Kf2 {[%emt 0:00:10]} Bd5 {[%emt 0:00:15]} 23. Re1 {[%emt 0:01:50]} Kf7 {[%emt 0:00:42]} 24. Bc5 {[%emt 0:02:43]} Kf6 {[%emt 0:04:49]} 25. Bd4+ {[%emt 0:01:02]} Kf7 {[%emt 0:00:11]} 26. Bc5 {[%emt 0:00:45]} Be6 {[%emt 0:00:05]} 27. Be3 {[%emt 0:04:33]} Rab8 {[%emt 0:11:39]} 28. Bxa7 {[%emt 0:00:33]} Rxb2 {[%emt 0:01:50]} 29. Bxb8 {[%emt 0:00:36]} Rxd2+ {[%emt 0:00:04]} 30. Kxf3 {[%emt 0:00:05]} Rxh2 {[%emt 0:00:33]} 31. Bxc7 {[%emt 0:00:27]} Bd5+ {[%emt 0:00:54]} 32. Ke3 {[%emt 0:01:29]} Ra2 {[%emt 0:01:44]} 33. Bd6 {[%emt 0:00:37]} Ke6 {[%emt 0:00:03]} 34. Bc5 {[%emt 0:00:33]} Kf5 {[%emt 0:00:14]} 35. Re2 {[%emt 0:02:25]} Ra1 {[%emt 0:01:31]} 36. Rh2 {[%emt 0:00:49]} Bg8 {[%emt 0:03:36]} 37. Rh4 {[%emt 0:01:35]} g5 {[%emt 0:03:46]} 38. Rh6 {[%emt 0:01:29]} Kg4 {[%emt 0:00:23]} 39. Bd6 {[%emt 0:00:55]} c5 {[%emt 0:01:23]} 40. Bxc5 {[%emt 0:00:49]} Kxg3 {[%emt 0:00:06]} 41. Bd6+ {[%emt 0:00:41]} Kg4 {[%emt 0:00:46]} 42. Bb4 {[%emt 0:01:33]} Rf1 {[%emt 0:01:03]} 43. Ke4 {[%emt 0:00:00]} Bf7 {[%emt 0:01:26]} 44. Rh2 {[%emt 0:00:18]} Bg6+ {[%emt 0:00:47]} 45. Ke3 {[%emt 0:00:23]} Rf3+ {[%emt 0:00:28]} 46. Kd4 {[%emt 0:00:34]} h5 {[%emt 0:00:44]} 47. Rg2+ {[%emt 0:00:16]} Kf5 {[%emt 0:01:34]} 48. a4 {[%emt 0:00:30]} Rf4+ {[%emt 0:00:36]} 49. Kc5 {[%emt 0:00:07]} h4 {[%emt 0:00:17]} 50. a5 {[%emt 0:00:30]} h3 {[%emt 0:00:56]} 51. Rh2 {[%emt 0:00:26]} Kg4 {[%emt 0:00:08]} 52. a6 {[%emt 0:00:56]} Kg3 {[%emt 0:00:31]} 53. a7 {[%emt 0:00:28]} Be4 {[%emt 0:00:06]} 54. Re2 {[%emt 0:00:21]} h2 {[%emt 0:01:21]} 55. Be1+ {[%emt 0:01:03]} Kh3 {[%emt 0:00:25]} 56. Re3+ {[%emt 0:00:24]} Kg4 {[%emt 0:00:42]} 57. Rxe4 {[%emt 0:00:42]} h1=Q {[%emt 0:00:13]} 0-1

[Event "10th Uppsala Young Champions 2023"]
[Site "Uppsala"]
[Date "2023.10.27"]
[Round "1.5"]
[White "Falkevall, Axel"]
[Black "Muntean, Victor"]
[Result "1-0"]
[ECO "C70"]
[WhiteElo "2280"]
[BlackElo "2092"]
[Annotator "ChessBase"]
[PlyCount "75"]
[EventDate "2023.10.27"]
[EventType "swiss"]
[EventCountry "SWE"]
[SourceTitle "playchess.com"]
[Source "ChessBase"]
[SourceQuality "1"]
[TimeControl "5400+30"]

1. e4 {[%emt 0:00:44]} e5 {[%emt 0:00:04]} 2. Nf3 {[%emt 0:00:06]} Nc6 {[%emt 0:00:05]} 3. Bb5 {[%emt 0:00:15]} a6 {[%emt 0:00:05]} 4. Ba4 {[%emt 0:00:04]} f5 5. d3 {[%emt 0:01:40]} fxe4 {[%emt 0:00:19]} 6. dxe4 {[%emt 0:00:06]} Nf6 {[%emt 0:00:16]} 7. O-O {[%emt 0:01:27]} d6 {[%emt 0:00:09]} 8. Re1 {[%emt 0:07:38]} Be7 {[%emt 0:03:43]} 9. c3 {[%emt 0:02:29]} O-O {[%emt 0:06:37]} 10. Bb3+ {[%emt 0:09:08]} Kh8 {[%emt 0:00:10]} 11. Ng5 {[%emt 0:02:40]} Qe8 {[%emt 0:02:38]} 12. Ne6 {[%emt 0:01:47]} Bxe6 {[%emt 0:00:11]} 13. Bxe6 {[%emt 0:00:04]} Nd8 {[%emt 0:04:56]} 14. Bh3 {[%emt 0:05:49]} Qf7 {[%emt 0:07:09]} 15. f3 {[%emt 0:03:31]} Nh5 {[%emt 0:04:34]} 16. g3 {[%emt 0:07:30]} Ne6 {[%emt 0:09:24]} 17. Rf1 {[%emt 0:05:51]} Ng5 {[%emt 0:09:10]} 18. Bg4 {[%emt 0:02:29]} g6 {[%emt 0:07:42]} 19. Be3 {[%emt 0:03:53]} Ng7 {[%emt 0:04:23]} 20. h4 {[%emt 0:03:50]} h5 {[%emt 0:05:25]} 21. hxg5 {[%emt 0:06:27]} hxg4 {[%emt 0:00:11]} 22. f4 {[%emt 0:03:06]} Qe6 {[%emt 0:02:25]} 23. Nd2 {[%emt 0:01:24]} Nh5 {[%emt 0:02:42]} 24. Kg2 {[%emt 0:03:47]} Rf7 {[%emt 0:05:30]} 25. Rh1 {[%emt 0:05:27]} exf4 {[%emt 0:07:34]} 26. gxf4 {[%emt 0:01:11]} c5 {[%emt 0:03:08]} 27. Qe2 {[%emt 0:07:29]} Kg7 {[%emt 0:03:43]} 28. Rxh5 {[%emt 0:03:15]} gxh5 {[%emt 0:00:49]} 29. f5 {[%emt 0:00:23]} Qe5 {[%emt 0:01:13]} 30. Rf1 {[%emt 0:01:31]} Bxg5 {[%emt 0:03:18]} 31. Bxg5 {[%emt 0:00:21]} Re8 {[%emt 0:00:08]} 32. Qd3 {[%emt 0:02:58]} Rd7 {[%emt 0:04:54]} 33. Bf4 {[%emt 0:01:53]} Qe7 {[%emt 0:00:05]} 34. Qg3 {[%emt 0:02:58]} Qf7 {[%emt 0:00:53]} 35. Qh4 {[%emt 0:00:59]} Qf6 {[%emt 0:01:50]} 36. Qxh5 {[%emt 0:02:11]} Rh8 {[%emt 0:00:09]} 37. Qg5+ {[%emt 0:00:18]} Kf7 {[%emt 0:01:02]} 38. Nc4 {[%emt 0:00:34]} 1-0

[Event "10th Uppsala Young Champions 2023"]
[Site "Uppsala"]
[Date "2023.10.27"]
[Round "1.6"]
[White "Harish, Neeraj"]
[Black "Ljung, Harald"]
[Result "0-1"]
[ECO "B38"]
[WhiteElo "2076"]
[BlackElo "2159"]
[Annotator "ChessBase"]
[PlyCount "68"]
[EventDate "2023.10.27"]
[EventType "swiss"]
[EventCountry "SWE"]
[SourceTitle "playchess.com"]
[Source "ChessBase"]
[SourceQuality "1"]
[TimeControl "5400+30"]

1. e4 {[%emt 0:00:06]} c5 {[%emt 0:00:09]} 2. Nf3 {[%emt 0:00:07]} Nc6 {[%emt 0:00:19]} 3. d4 {[%emt 0:00:12]} cxd4 {[%emt 0:00:04]} 4. Nxd4 {[%emt 0:00:05]} g6 {[%emt 0:00:25]} 5. c4 {[%emt 0:00:09]} Bg7 {[%emt 0:00:04]} 6. Be3 {[%emt 0:00:04]} Nf6 {[%emt 0:00:38]} 7. Nc3 {[%emt 0:00:07]} O-O {[%emt 0:00:14]} 8. Be2 {[%emt 0:00:55]} d6 {[%emt 0:00:42]} 9. O-O {[%emt 0:00:25]} Bd7 {[%emt 0:01:05]} 10. h3 {[%emt 0:02:37]} Nxd4 {[%emt 0:03:41]} 11. Bxd4 {[%emt 0:00:07]} Bc6 {[%emt 0:00:11]} 12. Qc2 {[%emt 0:07:18]} a6 {[%emt 0:01:53]} 13. Rfd1 {[%emt 0:03:48]} Rc8 {[%emt 0:03:27]} 14. c5 {[%emt 0:09:38]} Qa5 {[%emt 0:03:25]} 15. cxd6 {[%emt 0:03:45]} exd6 {[%emt 0:00:25]} 16. Qd3 {[%emt 0:07:32]} Rfe8 {[%emt 0:06:20]} 17. Bf3 {[%emt 0:05:22]} Qg5 {[%emt 0:06:45]} 18. g3 {[%emt 0:04:57]} Re6 {[%emt 0:09:43]} 19. h4 {[%emt 0:03:47]} Qa5 {[%emt 0:00:50]} 20. Bg2 {[%emt 0:17:23]} Rce8 {[%emt 0:03:59]} 21. f3 {[%emt 0:00:11]} Nh5 {[%emt 0:06:21]} 22. Bf2 {[%emt 0:00:26]} Be5 {[%emt 0:05:19]} 23. Bh3 {[%emt 0:13:19]} R6e7 {[%emt 0:02:57]} 24. Kg2 {[%emt 0:03:13]} Nf6 {[%emt 0:14:33]} 25. Rd2 {[%emt 0:03:17]} Bxc3 {[%emt 0:10:38]} 26. Qxc3 {[%emt 0:01:45]} Qxc3 {[%emt 0:01:46]} 27. bxc3 {[%emt 0:00:06]} d5 {[%emt 0:01:23]} 28. Bd4 {[%emt 0:04:40]} Nd7 {[%emt 0:02:58]} 29. exd5 {[%emt 0:01:51]} Bxd5 {[%emt 0:00:12]} 30. Rad1 {[%emt 0:00:18]} Bc6 {[%emt 0:01:09]} 31. Bf2 {[%emt 0:00:16]} Ne5 {[%emt 0:01:41]} 32. Bc5 {[%emt 0:01:00]} Nxf3 {[%emt 0:01:02]} 33. Bxe7 {[%emt 0:01:25]} Nxd2+ {[%emt 0:00:11]} 34. Kf2 {[%emt 0:00:44]} Ne4+ {[%emt 0:00:09]} 0-1

[Event "10th Uppsala Young Champions 2023"]
[Site "Uppsala"]
[Date "2023.10.27"]
[Round "1.7"]
[White "Morell, Ludvig"]
[Black "Nilsson, Oliver"]
[Result "1/2-1/2"]
[ECO "C55"]
[WhiteElo "2017"]
[BlackElo "1933"]
[Annotator "NA"]
[PlyCount "91"]
[EventDate "2023.10.27"]
[EventType "swiss"]
[EventCountry "SWE"]
[SourceTitle "playchess.com"]
[Source "ChessBase"]
[SourceQuality "1"]
[TimeControl "5400+30"]

1. e4 {[%emt 0:00:04]} e5 {[%emt 0:00:04]} 2. Nf3 {[%emt 0:00:03]} Nc6 {[%emt 0:00:04]} 3. Bc4 {[%emt 0:00:04]} Nf6 {[%emt 0:00:04]} 4. d3 {[%emt 0:00:17]} h6 {[%emt 0:00:06]} 5. c3 {[%emt 0:03:00]} d6 {[%emt 0:00:06]} 6. Qe2 {[%emt 0:03:37]} g6 {[%emt 0:02:27]} 7. Nbd2 {[%emt 0:04:19]} Bg7 {[%emt 1:31:09]} 8. Nf1 {[%emt 0:08:20]} d5 {[%emt 0:00:00]} 9. Bb3 {[%emt 0:06:22]} O-O {[%emt 0:00:00]} 10. Bd2 {[%emt 0:01:16]} Be6 {[%emt 0:00:00]} 11. O-O-O {[%emt 0:02:35]} dxe4 {[%emt 0:00:00]} 12. dxe4 {[%emt 0:00:13]} Bxb3 {[%emt 0:00:00]} 13. axb3 {[%emt 0:00:05]} Qe7 {[%emt 0:00:00]} 14. Ne3 {[%emt 0:08:52]} Rfd8 {[%emt 0:00:00]} 15. Nh4 {[%emt 0:01:07]} Qe6 {[%emt 0:00:00]} 16. Nc4 {[%emt 0:05:35]} b5 {[%emt 0:00:00]} 17. Na3 {[%emt 0:00:51]} a6 {[%emt 0:00:00]} 18. Kc2 {[%emt 0:02:02]} Rd4 {[%emt 0:00:00]} 19. f3 {[%emt 0:05:13]} Rb4 {[%emt 0:00:00]} 20. Kb1 {[%emt 0:04:50]} Rxb3 {[%emt 0:00:00]} 21. Nc2 {[%emt 0:04:18]} Qc4 {[%emt 0:00:00]} 22. Qxc4 {[%emt 0:04:37]} bxc4 {[%emt 0:00:00]} 23. Ne3 {[%emt 0:00:53]} Na5 {[%emt 0:00:00]} 24. Kc2 {[%emt 0:00:14]} Rab8 {[%emt 0:00:00]} 25. Bc1 {[%emt 0:00:59]} h5 {[%emt 0:00:00]} 26. Nd5 {[%emt 0:02:45]} Nxd5 {[%emt 0:00:00]} 27. Rxd5 {[%emt 0:00:39]} R3b5 {[%emt 0:00:00]} 28. Rhd1 {[%emt 0:02:24]} Nb3 {[%emt 0:00:00]} 29. Rd8+ {[%emt 0:02:02]} Kh7 {[%emt 0:00:00]} 30. Rxb8 {[%emt 0:00:24]} Rxb8 {[%emt 0:00:00]} 31. Rd7 {[%emt 0:00:21]} Nxc1 {[%emt 0:00:00]} 32. Kxc1 {[%emt 0:00:05]} Bh6+ {[%emt 0:00:00]} 33. Kc2 {[%emt 0:00:21]} Bg5 {[%emt 0:02:00]} 34. g3 {[%emt 0:00:22]} Rd8 {[%emt 0:00:59]} 35. Rxf7+ {[%emt 0:06:13]} Kg8 {[%emt 0:01:02]} 36. Rxc7 {[%emt 0:00:13]} Rd2+ {[%emt 0:00:05]} 37. Kb1 {[%emt 0:00:05]} Bxh4 {[%emt 0:01:00]} 38. gxh4 {[%emt 0:00:15]} Rxh2 {[%emt 0:00:04]} 39. Rxc4 {[%emt 0:00:58]} Rxh4 {[%emt 0:00:08]} 40. Rc8+ {[%emt 0:02:59]} Kg7 {[%emt 0:00:24]} 41. c4 {[%emt 0:03:44]} Rf4 {[%emt 0:04:57]} 42. c5 {[%emt 0:02:31]} Rf8 {[%emt 0:00:06]} 43. Rc7+ {[%emt 0:00:05]} Rf7 {[%emt 0:00:12]} 44. Rc8 {[%emt 0:00:09]} Rf8 {[%emt 0:00:10]} 45. Rc7+ {[%emt 0:00:07]} Rf7 {[%emt 0:04:01]} 46. Rc8 {[%emt 0:00:18]} 1/2-1/2